Workbook

Sheet Input
A1: NAME OF END USER: | C1: NAME OF SCHOOL HEAD: | M1: SCHOOL:
A2: POSITION / DESIGNATION: | C2: POSITION / DESIGNATION: | M2: PROGRAM / ACTIVITY / PROJECT:
A3: CALENDAR YEAR: | C3: SCHOOL BAC SECRETARIAT: | M3: BUDGET FOR THE PROGRAM / ACTIVITY / PROJECT:
A4: TOTAL AMOUNT | B4: =ROUND(SUM(W7:W10004),2) -> 0
A5: CATEGORY | B5: ITEM AND SPECIFICATION | C5: UNIT | D5: QUANTITY REQUIREMENT | T5: TOTAL QUANTITY | U5: UNIT PRICE | V5: MARKED UP PRICE | W5: TOTAL AMOUNT
D6: JAN | E6: FEB | F6: MAR | G6: Q1 | H6: APR | I6: MAY | J6: JUNE | K6: Q2 | L6: JUL | M6: AUG | N6: SEPT | O6: Q3 | P6: OCT | Q6: NOV | R6: DEC | S6: Q4
C7: =IF($B7<>"",VLOOKUP($B7,Tbl_Reference,2,0),"") ->  | G7: =SUM(D7:F7) -> 0 | K7: =SUM(H7:J7) -> 0 | O7: =SUM(L7:N7) -> 0 | S7: =SUM(P7:R7) -> 0 | T7: =G7+K7+O7+S7 -> 0 | U7: =IF($B7<>"",VLOOKUP($B7,Tbl_Reference,3,0),"") ->  | V7: =IF($B7<>"",VLOOKUP($B7,Tbl_Reference,4,0),"") ->  | W7: =IF(B7<>"",IF(V7<>0,ROUND(T7*V7,2),ROUND(T7*U7,2)),"") -> 
G8: =SUM(D8:F8) -> 0 | K8: =SUM(H8:J8) -> 0 | O8: =SUM(L8:N8) -> 0 | S8: =SUM(P8:R8) -> 0 | T8: =G8+K8+O8+S8 -> 0
G9: 0 | K9: 0 | O9: 0 | S9: 0 | T9: 0
G10: 0 | K10: 0 | O10: 0 | S10: 0 | T10: 0
G11: 0 | K11: 0 | O11: 0 | S11: 0 | T11: 0
G12: 0 | K12: 0 | O12: 0 | S12: 0 | T12: 0
G13: 0 | K13: 0 | O13: 0 | S13: 0 | T13: 0
G14: 0 | K14: 0 | O14: 0 | S14: 0 | T14: 0
G15: 0 | K15: 0 | O15: 0 | S15: 0 | T15: 0
G16: 0 | K16: 0 | O16: 0 | S16: 0 | T16: 0
G17: 0 | K17: 0 | O17: 0 | S17: 0 | T17: 0
G18: 0 | K18: 0 | O18: 0 | S18: 0 | T18: 0
G19: 0 | K19: 0 | O19: 0 | S19: 0 | T19: 0
G20: 0 | K20: 0 | O20: 0 | S20: 0 | T20: 0
G21: 0 | K21: 0 | O21: 0 | S21: 0 | T21: 0
G22: 0 | K22: 0 | O22: 0 | S22: 0 | T22: 0
G23: 0 | K23: 0 | O23: 0 | S23: 0 | T23: 0
G24: 0 | K24: 0 | O24: 0 | S24: 0 | T24: 0
G25: 0 | K25: 0 | O25: 0 | S25: 0 | T25: 0
G26: 0 | K26: 0 | O26: 0 | S26: 0 | T26: 0
G27: 0 | K27: 0 | O27: 0 | S27: 0 | T27: 0
G28: 0 | K28: 0 | O28: 0 | S28: 0 | T28: 0
G29: 0 | K29: 0 | O29: 0 | S29: 0 | T29: 0
G30: 0 | K30: 0 | O30: 0 | S30: 0 | T30: 0
G31: 0 | K31: 0 | O31: 0 | S31: 0 | T31: 0
G32: 0 | K32: 0 | O32: 0 | S32: 0 | T32: 0
G33: 0 | K33: 0 | O33: 0 | S33: 0 | T33: 0
G34: 0 | K34: 0 | O34: 0 | S34: 0 | T34: 0
G35: 0 | K35: 0 | O35: 0 | S35: 0 | T35: 0
G36: 0 | K36: 0 | O36: 0 | S36: 0 | T36: 0
G37: 0 | K37: 0 | O37: 0 | S37: 0 | T37: 0
G38: 0 | K38: 0 | O38: 0 | S38: 0 | T38: 0
G39: 0 | K39: 0 | O39: 0 | S39: 0 | T39: 0
G40: 0 | K40: 0 | O40: 0 | S40: 0 | T40: 0
G41: 0 | K41: 0 | O41: 0 | S41: 0 | T41: 0
G42: 0 | K42: 0 | O42: 0 | S42: 0 | T42: 0
G43: 0 | K43: 0 | O43: 0 | S43: 0 | T43: 0
G44: 0 | K44: 0 | O44: 0 | S44: 0 | T44: 0
G45: 0 | K45: 0 | O45: 0 | S45: 0 | T45: 0
G46: 0 | K46: 0 | O46: 0 | S46: 0 | T46: 0
G47: 0 | K47: 0 | O47: 0 | S47: 0 | T47: 0
G48: 0 | K48: 0 | O48: 0 | S48: 0 | T48: 0
G49: 0 | K49: 0 | O49: 0 | S49: 0 | T49: 0
G50: 0 | K50: 0 | O50: 0 | S50: 0 | T50: 0
G51: 0 | K51: 0 | O51: 0 | S51: 0 | T51: 0
G52: 0 | K52: 0 | O52: 0 | S52: 0 | T52: 0
G53: 0 | K53: 0 | O53: 0 | S53: 0 | T53: 0
G54: 0 | K54: 0 | O54: 0 | S54: 0 | T54: 0
G55: 0 | K55: 0 | O55: 0 | S55: 0 | T55: 0
G56: 0 | K56: 0 | O56: 0 | S56: 0 | T56: 0
G57: 0 | K57: 0 | O57: 0 | S57: 0 | T57: 0
G58: 0 | K58: 0 | O58: 0 | S58: 0 | T58: 0
G59: 0 | K59: 0 | O59: 0 | S59: 0 | T59: 0
G60: 0 | K60: 0 | O60: 0 | S60: 0 | T60: 0
G61: 0 | K61: 0 | O61: 0 | S61: 0 | T61: 0
G62: 0 | K62: 0 | O62: 0 | S62: 0 | T62: 0
G63: 0 | K63: 0 | O63: 0 | S63: 0 | T63: 0
G64: 0 | K64: 0 | O64: 0 | S64: 0 | T64: 0
G65: 0 | K65: 0 | O65: 0 | S65: 0 | T65: 0
G66: 0 | K66: 0 | O66: 0 | S66: 0 | T66: 0
G67: 0 | K67: 0 | O67: 0 | S67: 0 | T67: 0
G68: 0 | K68: 0 | O68: 0 | S68: 0 | T68: 0
G69: 0 | K69: 0 | O69: 0 | S69: 0 | T69: 0
G70: 0 | K70: 0 | O70: 0 | S70: 0 | T70: 0
C71: =IF($B71<>"",VLOOKUP($B71,Tbl_Reference,2,0),"") ->  | G71: 0 | K71: 0 | O71: 0 | S71: 0 | T71: 0 | U71: =IF($B71<>"",VLOOKUP($B71,Tbl_Reference,3,0),"") ->  | V71: =IF($B71<>"",VLOOKUP($B71,Tbl_Reference,4,0),"") -> 
G72: =SUM(D72:F72) -> 0 | K72: =SUM(H72:J72) -> 0 | O72: =SUM(L72:N72) -> 0 | S72: =SUM(P72:R72) -> 0 | T72: =G72+K72+O72+S72 -> 0 | W72: =IF(B72<>"",IF(V72<>0,ROUND(T72*V72,2),ROUND(T72*U72,2)),"") -> 
G73: 0 | K73: 0 | O73: 0 | S73: 0 | T73: 0
G74: 0 | K74: 0 | O74: 0 | S74: 0 | T74: 0
G75: 0 | K75: 0 | O75: 0 | S75: 0 | T75: 0
G76: 0 | K76: 0 | O76: 0 | S76: 0 | T76: 0
G77: 0 | K77: 0 | O77: 0 | S77: 0 | T77: 0
G78: 0 | K78: 0 | O78: 0 | S78: 0 | T78: 0
G79: 0 | K79: 0 | O79: 0 | S79: 0 | T79: 0
G80: 0 | K80: 0 | O80: 0 | S80: 0 | T80: 0
G81: 0 | K81: 0 | O81: 0 | S81: 0 | T81: 0
G82: 0 | K82: 0 | O82: 0 | S82: 0 | T82: 0
G83: 0 | K83: 0 | O83: 0 | S83: 0 | T83: 0
G84: 0 | K84: 0 | O84: 0 | S84: 0 | T84: 0
G85: 0 | K85: 0 | O85: 0 | S85: 0 | T85: 0
G86: 0 | K86: 0 | O86: 0 | S86: 0 | T86: 0
G87: 0 | K87: 0 | O87: 0 | S87: 0 | T87: 0
G88: 0 | K88: 0 | O88: 0 | S88: 0 | T88: 0
G89: 0 | K89: 0 | O89: 0 | S89: 0 | T89: 0
G90: 0 | K90: 0 | O90: 0 | S90: 0 | T90: 0
G91: 0 | K91: 0 | O91: 0 | S91: 0 | T91: 0
G92: 0 | K92: 0 | O92: 0 | S92: 0 | T92: 0
G93: 0 | K93: 0 | O93: 0 | S93: 0 | T93: 0
G94: 0 | K94: 0 | O94: 0 | S94: 0 | T94: 0
G95: 0 | K95: 0 | O95: 0 | S95: 0 | T95: 0
G96: 0 | K96: 0 | O96: 0 | S96: 0 | T96: 0
G97: 0 | K97: 0 | O97: 0 | S97: 0 | T97: 0
G98: 0 | K98: 0 | O98: 0 | S98: 0 | T98: 0
G99: 0 | K99: 0 | O99: 0 | S99: 0 | T99: 0
G100: 0 | K100: 0 | O100: 0 | S100: 0 | T100: 0
G101: 0 | K101: 0 | O101: 0 | S101: 0 | T101: 0
G102: 0 | K102: 0 | O102: 0 | S102: 0 | T102: 0
G103: 0 | K103: 0 | O103: 0 | S103: 0 | T103: 0
G104: 0 | K104: 0 | O104: 0 | S104: 0 | T104: 0
G105: 0 | K105: 0 | O105: 0 | S105: 0 | T105: 0
G106: 0 | K106: 0 | O106: 0 | S106: 0 | T106: 0
G107: 0 | K107: 0 | O107: 0 | S107: 0 | T107: 0
G108: 0 | K108: 0 | O108: 0 | S108: 0 | T108: 0
G109: 0 | K109: 0 | O109: 0 | S109: 0 | T109: 0
G110: 0 | K110: 0 | O110: 0 | S110: 0 | T110: 0
G111: 0 | K111: 0 | O111: 0 | S111: 0 | T111: 0
G112: 0 | K112: 0 | O112: 0 | S112: 0 | T112: 0
G113: 0 | K113: 0 | O113: 0 | S113: 0 | T113: 0
G114: 0 | K114: 0 | O114: 0 | S114: 0 | T114: 0
G115: 0 | K115: 0 | O115: 0 | S115: 0 | T115: 0
G116: 0 | K116: 0 | O116: 0 | S116: 0 | T116: 0
G117: 0 | K117: 0 | O117: 0 | S117: 0 | T117: 0
G118: 0 | K118: 0 | O118: 0 | S118: 0 | T118: 0
G119: 0 | K119: 0 | O119: 0 | S119: 0 | T119: 0
G120: 0 | K120: 0 | O120: 0 | S120: 0 | T120: 0
G121: 0 | K121: 0 | O121: 0 | S121: 0 | T121: 0
G122: 0 | K122: 0 | O122: 0 | S122: 0 | T122: 0
G123: 0 | K123: 0 | O123: 0 | S123: 0 | T123: 0
G124: 0 | K124: 0 | O124: 0 | S124: 0 | T124: 0
G125: 0 | K125: 0 | O125: 0 | S125: 0 | T125: 0
G126: 0 | K126: 0 | O126: 0 | S126: 0 | T126: 0
G127: 0 | K127: 0 | O127: 0 | S127: 0 | T127: 0
G128: 0 | K128: 0 | O128: 0 | S128: 0 | T128: 0
G129: 0 | K129: 0 | O129: 0 | S129: 0 | T129: 0
G130: 0 | K130: 0 | O130: 0 | S130: 0 | T130: 0
G131: 0 | K131: 0 | O131: 0 | S131: 0 | T131: 0
G132: 0 | K132: 0 | O132: 0 | S132: 0 | T132: 0
G133: 0 | K133: 0 | O133: 0 | S133: 0 | T133: 0
G134: 0 | K134: 0 | O134: 0 | S134: 0 | T134: 0
C135: =IF($B135<>"",VLOOKUP($B135,Tbl_Reference,2,0),"") ->  | G135: 0 | K135: 0 | O135: 0 | S135: 0 | T135: 0 | U135: =IF($B135<>"",VLOOKUP($B135,Tbl_Reference,3,0),"") ->  | V135: =IF($B135<>"",VLOOKUP($B135,Tbl_Reference,4,0),"") -> 
G136: =SUM(D136:F136) -> 0 | K136: =SUM(H136:J136) -> 0 | O136: =SUM(L136:N136) -> 0 | S136: =SUM(P136:R136) -> 0 | T136: =G136+K136+O136+S136 -> 0 | W136: =IF(B136<>"",IF(V136<>0,ROUND(T136*V136,2),ROUND(T136*U136,2)),"") -> 
G137: 0 | K137: 0 | O137: 0 | S137: 0 | T137: 0
G138: 0 | K138: 0 | O138: 0 | S138: 0 | T138: 0
G139: 0 | K139: 0 | O139: 0 | S139: 0 | T139: 0
G140: 0 | K140: 0 | O140: 0 | S140: 0 | T140: 0
G141: 0 | K141: 0 | O141: 0 | S141: 0 | T141: 0
G142: 0 | K142: 0 | O142: 0 | S142: 0 | T142: 0
G143: 0 | K143: 0 | O143: 0 | S143: 0 | T143: 0
G144: 0 | K144: 0 | O144: 0 | S144: 0 | T144: 0
G145: 0 | K145: 0 | O145: 0 | S145: 0 | T145: 0
G146: 0 | K146: 0 | O146: 0 | S146: 0 | T146: 0
G147: 0 | K147: 0 | O147: 0 | S147: 0 | T147: 0
G148: 0 | K148: 0 | O148: 0 | S148: 0 | T148: 0
G149: 0 | K149: 0 | O149: 0 | S149: 0 | T149: 0
G150: 0 | K150: 0 | O150: 0 | S150: 0 | T150: 0
G151: 0 | K151: 0 | O151: 0 | S151: 0 | T151: 0
G152: 0 | K152: 0 | O152: 0 | S152: 0 | T152: 0
G153: 0 | K153: 0 | O153: 0 | S153: 0 | T153: 0
G154: 0 | K154: 0 | O154: 0 | S154: 0 | T154: 0
G155: 0 | K155: 0 | O155: 0 | S155: 0 | T155: 0
G156: 0 | K156: 0 | O156: 0 | S156: 0 | T156: 0
G157: 0 | K157: 0 | O157: 0 | S157: 0 | T157: 0
G158: 0 | K158: 0 | O158: 0 | S158: 0 | T158: 0
G159: 0 | K159: 0 | O159: 0 | S159: 0 | T159: 0
G160: 0 | K160: 0 | O160: 0 | S160: 0 | T160: 0
G161: 0 | K161: 0 | O161: 0 | S161: 0 | T161: 0
G162: 0 | K162: 0 | O162: 0 | S162: 0 | T162: 0
G163: 0 | K163: 0 | O163: 0 | S163: 0 | T163: 0
G164: 0 | K164: 0 | O164: 0 | S164: 0 | T164: 0
G165: 0 | K165: 0 | O165: 0 | S165: 0 | T165: 0
G166: 0 | K166: 0 | O166: 0 | S166: 0 | T166: 0
G167: 0 | K167: 0 | O167: 0 | S167: 0 | T167: 0
G168: 0 | K168: 0 | O168: 0 | S168: 0 | T168: 0
G169: 0 | K169: 0 | O169: 0 | S169: 0 | T169: 0
G170: 0 | K170: 0 | O170: 0 | S170: 0 | T170: 0
G171: 0 | K171: 0 | O171: 0 | S171: 0 | T171: 0
G172: 0 | K172: 0 | O172: 0 | S172: 0 | T172: 0
G173: 0 | K173: 0 | O173: 0 | S173: 0 | T173: 0
G174: 0 | K174: 0 | O174: 0 | S174: 0 | T174: 0
G175: 0 | K175: 0 | O175: 0 | S175: 0 | T175: 0
G176: 0 | K176: 0 | O176: 0 | S176: 0 | T176: 0
G177: 0 | K177: 0 | O177: 0 | S177: 0 | T177: 0
G178: 0 | K178: 0 | O178: 0 | S178: 0 | T178: 0
G179: 0 | K179: 0 | O179: 0 | S179: 0 | T179: 0
G180: 0 | K180: 0 | O180: 0 | S180: 0 | T180: 0
G181: 0 | K181: 0 | O181: 0 | S181: 0 | T181: 0
G182: 0 | K182: 0 | O182: 0 | S182: 0 | T182: 0
G183: 0 | K183: 0 | O183: 0 | S183: 0 | T183: 0
G184: 0 | K184: 0 | O184: 0 | S184: 0 | T184: 0
G185: 0 | K185: 0 | O185: 0 | S185: 0 | T185: 0
G186: 0 | K186: 0 | O186: 0 | S186: 0 | T186: 0
G187: 0 | K187: 0 | O187: 0 | S187: 0 | T187: 0
G188: 0 | K188: 0 | O188: 0 | S188: 0 | T188: 0
G189: 0 | K189: 0 | O189: 0 | S189: 0 | T189: 0
G190: 0 | K190: 0 | O190: 0 | S190: 0 | T190: 0
G191: 0 | K191: 0 | O191: 0 | S191: 0 | T191: 0
G192: 0 | K192: 0 | O192: 0 | S192: 0 | T192: 0
G193: 0 | K193: 0 | O193: 0 | S193: 0 | T193: 0
G194: 0 | K194: 0 | O194: 0 | S194: 0 | T194: 0
G195: 0 | K195: 0 | O195: 0 | S195: 0 | T195: 0
G196: 0 | K196: 0 | O196: 0 | S196: 0 | T196: 0
G197: 0 | K197: 0 | O197: 0 | S197: 0 | T197: 0
G198: 0 | K198: 0 | O198: 0 | S198: 0 | T198: 0
C199: =IF($B199<>"",VLOOKUP($B199,Tbl_Reference,2,0),"") ->  | G199: 0 | K199: 0 | O199: 0 | S199: 0 | T199: 0 | U199: =IF($B199<>"",VLOOKUP($B199,Tbl_Reference,3,0),"") ->  | V199: =IF($B199<>"",VLOOKUP($B199,Tbl_Reference,4,0),"") -> 
G200: =SUM(D200:F200) -> 0 | K200: =SUM(H200:J200) -> 0 | O200: =SUM(L200:N200) -> 0 | S200: =SUM(P200:R200) -> 0 | T200: =G200+K200+O200+S200 -> 0 | W200: =IF(B200<>"",IF(V200<>0,ROUND(T200*V200,2),ROUND(T200*U200,2)),"") -> 
... 2050 more rows

Sheet Reference
A1: CATEGORY LIST | B1: CATEGORYLOOKUP | C1: CATEGORY | D1: ITEM | E1: UNIT OF MEASURE | F1: UNIT PRICE | G1: MARKED UP PRICE
A2: Common Electrical Supplies | B2: Lst_Electrical | C2: Common Electrical Supplies | D2: BALLAST, 18 watts | E2: piece | F2: 133.59 | G2: =ROUND((F2*1.1),2) -> 146.95 | I2: count all rows - filled up | J2: =COUNTA(Input!B7:B10004) -> 0
A3: Common Computer Consumables and Supplies | B3: Lst_CompSupplies | C3: Common Electrical Supplies | D3: BALLAST, 36 watts | E3: piece | F3: 130.52 | G3: =ROUND((F3*1.1),2) -> 143.57 | I3: count all rows - ppmp filled up | J3: =COUNTA(PPMP!B13:B14) -> 0
A4: Common Office Supplies | B4: Lst_OfficeSupplies | C4: Common Electrical Supplies | D4: BATTERY, size AA, alkaline, 2 pcs./packet | E4: packet | F4: 37.71 | G4: 41.48
A5: Common Office Devices | B5: Lst_OfficeDevices | C5: Common Electrical Supplies | D5: BATTERY, size AAA, alkaline, 2 pcs./packet | E5: packet | F5: 32.49 | G5: 35.74
A6: Common Janitorial Supplies | B6: Lst_JanSupplies | C6: Common Electrical Supplies | D6: BATTERY, size C, 1.5 volts | E6: piece | F6: 200 | G6: 220
A7: Legal Size Paper | B7: Lst_LegalPaper | C7: Common Electrical Supplies | D7: BATTERY, size D, alkaline, 2 pcs./packet | E7: packet | F7: 168.17 | G7: 184.99
A8: Common Office Equipment | B8: Lst_OfficeEquip | C8: Common Electrical Supplies | D8: COMPACT FLUORESCENT LIGHT, 18 watts | E8: piece | F8: 183.27 | G8: 201.6
A9: Medical Supplies and Materials | B9: Lst_Medical | C9: Common Electrical Supplies | D9: CORD COVER | E9: meter | F9: 68 | G9: 74.8
A10: Handbooks on Procurement | B10: Lst_Handbook | C10: Common Electrical Supplies | D10: EXTENSION WIRE, 4 meters with 3 socket outlet | E10: set | F10: 497 | G10: 546.7
A11: Seminars and Trainings | B11: Lst_Seminars | C11: Common Electrical Supplies | D11: FLAT CORD WIRE #16 | E11: meter | F11: 96 | G11: 105.6
A12: Tarpaulin | B12: Lst_Tarp | C12: Common Electrical Supplies | D12: FLUORESCENT LAMP, tubular, 18 watts | E12: piece | F12: 64.97 | G12: 71.47
C13: Common Electrical Supplies | D13: FLUORESCENT LAMP, tubular, 36 watts | E13: piece | F13: 66.89 | G13: 73.58
C14: Common Electrical Supplies | D14: FLUORESCENT LIGHTING FIXTURE, 1 x 18W | E14: set | F14: 601.97 | G14: 662.17
C15: Common Electrical Supplies | D15: FLUORESCENT LIGHTING FIXTURE, 1 x 36W | E15: set | F15: 707.07 | G15: 777.78
C16: Common Electrical Supplies | D16: FLUORESCENT LIGHTING FIXTURE, 13000h, T8, cool | E16: piece | F16: 228 | G16: 250.8
C17: Common Electrical Supplies | D17: FUSE, 30 amperes | E17: piece | F17: 22.93 | G17: 25.22
C18: Common Electrical Supplies | D18: FUSE, 60 amperes | E18: piece | F18: 51.6 | G18: 56.76
C19: Common Electrical Supplies | D19: OUTLET, 4 Gangs, Heavy Duty | E19: piece | F19: 378 | G19: 415.8
C20: Common Electrical Supplies | D20: STARTER, 4-40 watts | E20: piece | F20: 9.56 | G20: 10.52
C21: Common Electrical Supplies | D21: TAPE, Electrical | E21: roll | F21: 40.04 | G21: 44.04
C22: Common Electrical Supplies | D22: UNINTERRUPTIBLE POWER SUPPLY, 600 VA | E22: unit | F22: 2300 | G22: 2530
C23: Common Computer Consumables and Supplies | D23: COMPACT DISK RECORDABLE, min. of 700MB, 1x - 52x minimum speed, 80 min recording time | E23: piece | F23: 28 | G23: 30.8
C24: Common Computer Consumables and Supplies | D24: COMPACT DISK REWRITABLE, 700MB min. capacity, 80 minutes recording time, 4x - 10x min speed | E24: piece | F24: 48 | G24: 52.8
C25: Common Computer Consumables and Supplies | D25: COMPACT DISK STORAGE CASE, 50 CDs capacity, min, made of durable plastic or nylon fabric, double sided sleeves, with closure | E25: piece | F25: 369 | G25: 405.9
C26: Common Computer Consumables and Supplies | D26: COMPUTER CONTINUOUS FORMS, 1 ply, 11" x 14-7/8", 2000 sheets/box | E26: box | F26: 1428.77 | G26: 1571.65
C27: Common Computer Consumables and Supplies | D27: COMPUTER CONTINUOUS FORMS, 1 ply, 11" x 9-1/2", 2000 sheets/box | E27: box | F27: 1021.39 | G27: 1123.53
C28: Common Computer Consumables and Supplies | D28: COMPUTER CONTINUOUS FORMS, 2 ply, 11" x 14-7/8", 1000 sets/box | E28: box | F28: 1660.37 | G28: 1826.41
C29: Common Computer Consumables and Supplies | D29: COMPUTER CONTINUOUS FORMS, 2 ply, 11" x 9-1/2", 1000 sets/box | E29: box | F29: 1143.16 | G29: 1257.48
C30: Common Computer Consumables and Supplies | D30: COMPUTER CONTINUOUS FORMS, 3 ply, 11" x 14-7/8", 500 sets/box | E30: box | F30: 1431.05 | G30: 1574.16
C31: Common Computer Consumables and Supplies | D31: COMPUTER CONTINUOUS FORMS, 3 ply, 11 x 9-1/2", 500 sets/box | E31: box | F31: 953.3 | G31: 1048.63
C32: Common Computer Consumables and Supplies | D32: COOLER, Netbook | E32: piece | F32: 1175 | G32: 1292.5
C33: Common Computer Consumables and Supplies | D33: DISKETTE, floppy disk, 3.5", double sided, high density, formatted 10s/pack | E33: pack | F33: 98.99 | G33: 108.89
C34: Common Computer Consumables and Supplies | D34: DRUM UNIT, Brother DR3000 | E34: cart | F34: 9849.84 | G34: 10834.82
C35: Common Computer Consumables and Supplies | D35: DRUM UNIT, Brother DR3115 | E35: cart | F35: 7849.84 | G35: 8634.82
C36: Common Computer Consumables and Supplies | D36: DRUM UNIT, Brother DR4000 | E36: cart | F36: 7591.58 | G36: 8350.74
C37: Common Computer Consumables and Supplies | D37: DRUM UNIT, Brother DR7000 | E37: cart | F37: 9129.12 | G37: 10042.03
C38: Common Computer Consumables and Supplies | D38: DVD RECORDABLE, 16x speed, 4.7GB capacity | E38: piece | F38: 40 | G38: 44
C39: Common Computer Consumables and Supplies | D39: DVD REWRITABLE, 4x speed, 4.7GB capacity | E39: piece | F39: 47.01 | G39: 51.71
C40: Common Computer Consumables and Supplies | D40: EXTERNAL HARD DRIVE, 1TB, 2.5" HDD, USB 3.0(backward compatible with USB 2.0), 5400 RPM, with dual-color LED light to indicate USB 3.0/USB 2.0 transmission, USB powered | E40: piece | F40: 4000 | G40: 4400
C41: Common Computer Consumables and Supplies | D41: EXTERNAL HARD DRIVE, 500GB, 2.5"HDD, USB 3.0 (backward compatible with USB 2.0), 5400 RPM, with dual-color LED light to indicate USB 3.0/ USB 2.0 transmission, USB powered, with USB 3.0 cable and product guide | E41: piece | F41: 3750 | G41: 4125
C42: Common Computer Consumables and Supplies | D42: FLASH DRIVE, 16GB, USB 2.0, plug and play | E42: piece | F42: 514.8 | G42: 566.28
C43: Common Computer Consumables and Supplies | D43: FLASH DRIVE, 4GB, USB 2.0, plug and play | E43: piece | F43: 469 | G43: 515.9
C44: Common Computer Consumables and Supplies | D44: FLASH DRIVE, 8GB, USB 2.0, plug and play | E44: piece | F44: 530 | G44: 583
C45: Common Computer Consumables and Supplies | D45: HDMI, Type D, Micro, for Acer Laptop | E45: piece | F45: 1500 | G45: 1650
C46: Common Computer Consumables and Supplies | D46: IMAGING UNIT, Hewlett Packard Part No. CE314A, color imaging unit | E46: cart | F46: 6956.04 | G46: 7651.64
C47: Common Computer Consumables and Supplies | D47: IMAGING UNIT, Samsung Part No.SCXR6555A | E47: cart | F47: 19110 | G47: 21021
C48: Common Computer Consumables and Supplies | D48: INK CARTRIDGE, Brother LC39BK, black | E48: cart | F48: 1251.71 | G48: 1376.88
C49: Common Computer Consumables and Supplies | D49: INK CARTRIDGE, Brother LC39C, cyan | E49: cart | F49: 821.73 | G49: 903.9
C50: Common Computer Consumables and Supplies | D50: INK CARTRIDGE, Brother LC39M, magenta | E50: cart | F50: 821.73 | G50: 903.9
C51: Common Computer Consumables and Supplies | D51: INK CARTRIDGE, Brother LC39Y, yellow | E51: cart | F51: 821.73 | G51: 903.9
C52: Common Computer Consumables and Supplies | D52: INK CARTRIDGE, Brother LC67B, black | E52: cart | F52: 1672.13 | G52: 1839.34
C53: Common Computer Consumables and Supplies | D53: INK CARTRIDGE, Brother LC67HYBK, black | E53: cart | F53: 2904.72 | G53: 3195.19
C54: Common Computer Consumables and Supplies | D54: INK CARTRIDGE, Brother LC67HYC, cyan | E54: cart | F54: 1586.13 | G54: 1744.74
C55: Common Computer Consumables and Supplies | D55: INK CARTRIDGE, Brother LC67HYM, magenta | E55: cart | F55: 1586.13 | G55: 1744.74
C56: Common Computer Consumables and Supplies | D56: INK CARTRIDGE, Brother LC67HYY, yellow | E56: cart | F56: 1586.13 | G56: 1744.74
C57: Common Computer Consumables and Supplies | D57: INK CARTRIDGE, Brother LC67M, Magenta | E57: cart | F57: 1003.28 | G57: 1103.61
C58: Common Computer Consumables and Supplies | D58: INK CARTRIDGE, Brother LC67Y, Yellow | E58: cart | F58: 1003.28 | G58: 1103.61
C59: Common Computer Consumables and Supplies | D59: INK CARTRIDGE, Brother Part No. LC38B, Black | E59: cart | F59: 1232.6 | G59: 1355.86
C60: Common Computer Consumables and Supplies | D60: INK CARTRIDGE, Brother Part No. LC38C, Cyan | E60: cart | F60: 812.18 | G60: 893.4
C61: Common Computer Consumables and Supplies | D61: INK CARTRIDGE, Brother Part No. LC38M, Magenta+ | E61: cart | F61: 812.18 | G61: 893.4
C62: Common Computer Consumables and Supplies | D62: INK CARTRIDGE, Brother Part No. LC38Y, Yellow | E62: cart | F62: 812.18 | G62: 893.4
C63: Common Computer Consumables and Supplies | D63: INK CARTRIDGE, Brother Part No. LC40BK, black | E63: cart | F63: 1184.82 | G63: 1303.3
C64: Common Computer Consumables and Supplies | D64: INK CARTRIDGE, Brother Part No. LC40C, Cyan | E64: cart | F64: 668.85 | G64: 735.74
C65: Common Computer Consumables and Supplies | D65: INK CARTRIDGE, Brother Part No. LC40M, Magenta | E65: cart | F65: 716.63 | G65: 788.29
C66: Common Computer Consumables and Supplies | D66: INK CARTRIDGE, Brother Part No. LC40Y, Yellow | E66: cart | F66: 668.85 | G66: 735.74
C67: Common Computer Consumables and Supplies | D67: INK CARTRIDGE, Brother Part No. LC67C, Cyan | E67: cart | F67: 1003.28 | G67: =ROUND((F67*1.1),2) -> 1103.61
C68: Common Computer Consumables and Supplies | D68: INK CARTRIDGE, Canon Part No. CL-741, colored | E68: cart | F68: 1735.19 | G68: 1908.71
C69: Common Computer Consumables and Supplies | D69: INK CARTRIDGE, Canon Part No. CL-811, colored | E69: cart | F69: 1641.55 | G69: 1805.71
C70: Common Computer Consumables and Supplies | D70: INK CARTRIDGE, Canon Part No. CL-831, color | E70: cart | F70: 1868.96 | G70: 2055.86
C71: Common Computer Consumables and Supplies | D71: INK CARTRIDGE, Canon Part No. CL-98, colored | E71: cart | F71: 1270.82 | G71: 1397.9
C72: Common Computer Consumables and Supplies | D72: INK CARTRIDGE, Canon Part No. CLI-726, black | E72: cart | F72: 984.17 | G72: 1082.59
C73: Common Computer Consumables and Supplies | D73: INK CARTRIDGE, Canon Part No. CLI-726, cyan | E73: cart | F73: 986 | G73: 1084.6
C74: Common Computer Consumables and Supplies | D74: INK CARTRIDGE, Canon Part No. CLI-726, magenta | E74: cart | F74: 986 | G74: 1084.6
C75: Common Computer Consumables and Supplies | D75: INK CARTRIDGE, Canon Part No. CLI-726, Yellow | E75: cart | F75: 986 | G75: 1084.6
C76: Common Computer Consumables and Supplies | D76: INK CARTRIDGE, Canon Part No. PG-740, black | E76: cart | F76: 1323.37 | G76: 1455.71
C77: Common Computer Consumables and Supplies | D77: INK CARTRIDGE, Canon Part No. PG-810, black | E77: cart | F77: 999 | G77: 1098.9
C78: Common Computer Consumables and Supplies | D78: INK CARTRIDGE, Canon Part No. PG-830, black | E78: cart | F78: 1429.43 | G78: 1572.37
C79: Common Computer Consumables and Supplies | D79: INK CARTRIDGE, Canon Part No. PGI-725, black | E79: cart | F79: 1041.5 | G79: 1145.65
C80: Common Computer Consumables and Supplies | D80: INK CARTRIDGE, Epson C13T028091, black, for printer Stylus C60/CX3100 | E80: cart | F80: 2132.68 | G80: 2345.95
C81: Common Computer Consumables and Supplies | D81: INK CARTRIDGE, Epson C13T029091, color, for printer Stylus C60/ C50/ CX3100 | E81: cart | F81: 1947.31 | G81: 2142.04
C82: Common Computer Consumables and Supplies | D82: INK CARTRIDGE, Epson C13T032190, black, for printer Stylus C80/C82/ CX5100 | E82: cart | F82: 2300.84 | G82: 2530.92
C83: Common Computer Consumables and Supplies | D83: INK CARTRIDGE, Epson C13T032290, Cyan, for printer Stylus C80 | E83: cart | F83: 1098.83 | G83: 1208.71
C84: Common Computer Consumables and Supplies | D84: INK CARTRIDGE, Epson C13T032390, Magenta, for printer Stylus C80 | E84: cart | F84: 1098.83 | G84: 1208.71
C85: Common Computer Consumables and Supplies | D85: INK CARTRIDGE, Epson C13T032490, Yellow, for printer Stylus C80 | E85: cart | F85: 1098.83 | G85: 1208.71
C86: Common Computer Consumables and Supplies | D86: INK CARTRIDGE, Epson C13T038190, black, for printer Stylus C41SX/UX | E86: cart | F86: 903.9 | G86: 994.29
C87: Common Computer Consumables and Supplies | D87: INK CARTRIDGE, Epson C13T042290, Cyan, for printer Stylus C82/CX5100 | E87: cart | F87: 1001.36 | G87: 1101.5
C88: Common Computer Consumables and Supplies | D88: INK CARTRIDGE, Epson C13T042390, Magenta, for printer Stylus C82/CX5100 | E88: cart | F88: 1001.36 | G88: 1101.5
C89: Common Computer Consumables and Supplies | D89: INK CARTRIDGE, Epson C13T042490, Yellow, for printer Stylus C82/CX5100 | E89: cart | F89: 1001.36 | G89: 1101.5
C90: Common Computer Consumables and Supplies | D90: INK CARTRIDGE, Epson C13T046190, black, for printer Stylus C63/C83 | E90: cart | F90: 1150.42 | G90: 1265.46
C91: Common Computer Consumables and Supplies | D91: INK CARTRIDGE, Epson C13T047290, Cyan, for printer Stylus C63/C83 | E91: cart | F91: 708.98 | G91: 779.88
C92: Common Computer Consumables and Supplies | D92: INK CARTRIDGE, Epson C13T047390, Magenta, for printer Stylus C63/C83 | E92: cart | F92: 708.98 | G92: 779.88
C93: Common Computer Consumables and Supplies | D93: INK CARTRIDGE, Epson C13T047490, Yellow, for printer Stylus C63/C83 | E93: cart | F93: 708.98 | G93: 779.88
C94: Common Computer Consumables and Supplies | D94: INK CARTRIDGE, Epson C13T062190, black, High Cap, for printer Stylus CX3700/4700/C67 | E94: cart | F94: 1177.18 | G94: 1294.9
C95: Common Computer Consumables and Supplies | D95: INK CARTRIDGE, Epson C13T063190, black, Std Cap, for printer Stylus CX3700/4700/C67 | E95: cart | F95: 903.9 | G95: 994.29
C96: Common Computer Consumables and Supplies | D96: INK CARTRIDGE, Epson C13T063290, Cyan, Std Cap, for printer Stylus CX3700/4700/C67 | E96: cart | F96: 726.18 | G96: 798.8
C97: Common Computer Consumables and Supplies | D97: INK CARTRIDGE, Epson C13T063390, Magenta, Std Cap, for printer Stylus CX3700/4700/C67 | E97: cart | F97: 726.18 | G97: 798.8
C98: Common Computer Consumables and Supplies | D98: INK CARTRIDGE, Epson C13T063490, Yellow, Std Cap, for printer Stylus CX3700/4700/C67 | E98: cart | F98: 726.18 | G98: 798.8
C99: Common Computer Consumables and Supplies | D99: INK CARTRIDGE, Epson C13T075190, Black, for printer Stylus color C59/CX2900 | E99: cart | F99: 540.81 | G99: 594.89
C100: Common Computer Consumables and Supplies | D100: INK CARTRIDGE, Epson C13T075290, Cyan, for printer Stylus color C59/CX2900 | E100: cart | F100: 540.81 | G100: 594.89
C101: Common Computer Consumables and Supplies | D101: INK CARTRIDGE, Epson C13T075390, Magenta, for printer Stylus color C59/CX2900 | E101: cart | F101: 540.81 | G101: 594.89
C102: Common Computer Consumables and Supplies | D102: INK CARTRIDGE, Epson C13T075490, Yellow, for printer Stylus color C59/CX2900 | E102: cart | F102: 540.81 | G102: 594.89
C103: Common Computer Consumables and Supplies | D103: INK CARTRIDGE, Epson C13T103190, Black, for printer Stylus T40W/TX600FW | E103: cart | F103: 1591.86 | G103: 1751.05
C104: Common Computer Consumables and Supplies | D104: INK CARTRIDGE, Epson C13T103290, Cyan, for printer StylusT40W/TX600FW | E104: cart | F104: 1060.61 | G104: 1166.67
C105: Common Computer Consumables and Supplies | D105: INK CARTRIDGE, Epson C13T103390, Magenta, for printer Stylus T40W/TX600FW | E105: cart | F105: 1060.61 | G105: 1166.67
C106: Common Computer Consumables and Supplies | D106: INK CARTRIDGE, Epson C13T103490, Yellow, for printer Stylus T40W/TX600FW | E106: cart | F106: 1060.61 | G106: 1166.67
C107: Common Computer Consumables and Supplies | D107: INK CARTRIDGE, Epson C13T104190, black, for printer C110, CX7300/8300, TX200/400, Pigment High Cap | E107: cart | F107: 1060.61 | G107: 1166.67
C108: Common Computer Consumables and Supplies | D108: INK CARTRIDGE, Epson C13T104193, Black, for printer C110, CX7300/8300, TX200/400 Pigment High Cap - Double Pack | E108: cart | F108: 1767.68 | G108: 1944.45
C109: Common Computer Consumables and Supplies | D109: INK CARTRIDGE, Epson C13T105190, Black, for printer Stylus T10/T11/ T13/ T30/T20E/C79/C90/TX100/TX110/TX111/TX200/TX210/TX400/TX550W/TX300F/TX510FN/TX600FW/CX3900/CX5500/CX5900/CX6900F/CX8300/CX9300F, Pigment - 73N | E109: cart | F109: 783.51 | G109: 861.86
C110: Common Computer Consumables and Supplies | D110: INK CARTRIDGE, Epson C13T105290, Cyan, for printer Stylus T10/T11/ T13/ T30/T20E/C79/C90/TX100/TX110/TX111/TX200/TX210/TX400/TX550W/TX300F/TX510FN/TX600FW/CX3900/CX5500/CX5900/CX6900F/CX8300/CX9300F, Pigment - 73N | E110: cart | F110: 783.51 | G110: 861.86
C111: Common Computer Consumables and Supplies | D111: INK CARTRIDGE, Epson C13T105390, Magenta, for printer Stylus T10/T11/ T13/ T30/T20E/C79/C90/TX100/TX110/TX111/TX200/ TX210/TX400/TX550W/ TX300F/TX510FN/TX600FW/CX3900/CX5500/CX5900/CX6900F/CX8300/CX9300F, Pigment - 73N | E111: cart | F111: 783.51 | G111: 861.86
C112: Common Computer Consumables and Supplies | D112: INK CARTRIDGE, Epson C13T105490, Yellow, for printer Stylus T10/T11/ T13/ T30/T20E/C79/C90/TX100/TX110/TX111/TX200/ TX210/TX400/TX550W/ TX300F/TX510FN/TX600FW/CX3900/CX5500/CX5900/CX6900F/CX8300/CX9300F, Pigment - 73N | E112: cart | F112: 783.51 | G112: 861.86
C113: Common Computer Consumables and Supplies | D113: INK CARTRIDGE, Epson C13T107190, Black, for printer T10/T11/ T13/T20E/ TX100/TX110/TX111/CX5500) Pigment - 91N | E113: cart | F113: 523.61 | G113: 575.97
C114: Common Computer Consumables and Supplies | D114: INK CARTRIDGE, Epson C13T107290, Cyan, for printer T10/T11/ T13/T20E/ TX100/TX110/TX111/CX5500) Pigment - 91N | E114: cart | F114: 523.61 | G114: 575.97
C115: Common Computer Consumables and Supplies | D115: INK CARTRIDGE, Epson C13T107390, Magenta, for printer T10/T11/ T13/ T20E/TX100/TX110/TX111/CX5500) Pigment - 91N | E115: cart | F115: 523.61 | G115: 575.97
C116: Common Computer Consumables and Supplies | D116: INK CARTRIDGE, Epson C13T107490, Yellow, for printer T10/T11/ T13/T20E/ TX100/TX110/TX111/CX5500) Pigment - 91N | E116: cart | F116: 523.61 | G116: 575.97
C117: Common Computer Consumables and Supplies | D117: INK CARTRIDGE, Epson C13T111190, Black, for printer Stylus Photo R270/ 290/390/RX590, High Cap | E117: cart | F117: 1761.94 | G117: 1938.13
C118: Common Computer Consumables and Supplies | D118: INK CARTRIDGE, Epson C13T111290, Cyan, for printer Stylus Photo R270/ 290/390/RX590, High Cap | E118: cart | F118: 1761.94 | G118: 1938.13
C119: Common Computer Consumables and Supplies | D119: INK CARTRIDGE, Epson C13T111390, Magenta, for printer Stylus Photo R270/ 290/390/RX590, High Cap | E119: cart | F119: 1761.94 | G119: 1938.13
C120: Common Computer Consumables and Supplies | D120: INK CARTRIDGE, Epson C13T111490, Yellow, for printer Stylus Photo R270/ 290/390/RX590, High Cap | E120: cart | F120: 1761.94 | G120: 1938.13
C121: Common Computer Consumables and Supplies | D121: INK CARTRIDGE, Epson C13T111590, Light Cyan, for printer Stylus Photo R270/ 290/390/RX590, High Cap | E121: cart | F121: 1761.94 | G121: 1938.13
C122: Common Computer Consumables and Supplies | D122: INK CARTRIDGE, Epson C13T111690, Light Magenta, for printer Stylus Photo R270/ 290/390/RX590, High Cap | E122: cart | F122: 1761.94 | G122: 1938.13
C123: Common Computer Consumables and Supplies | D123: INK CARTRIDGE, Epson C13T112190, Black, for printer Stylus Photo R270/290/390, RX590, Std Cap | E123: cart | F123: 1230.68 | G123: 1353.75
C124: Common Computer Consumables and Supplies | D124: INK CARTRIDGE, Epson C13T112290, Cyan, for printer Stylus Photo R270/290/390, RX590, Std Cap | E124: cart | F124: 1230.68 | G124: 1353.75
C125: Common Computer Consumables and Supplies | D125: INK CARTRIDGE, Epson C13T112390, Magenta, for printer Stylus Photo R270/290/390, RX590, Std Cap | E125: cart | F125: 1230.68 | G125: 1353.75
C126: Common Computer Consumables and Supplies | D126: INK CARTRIDGE, Epson C13T112490, Yellow, for printer Stylus Photo R270/290/390, RX590, Std Cap | E126: cart | F126: 1230.68 | G126: 1353.75
C127: Common Computer Consumables and Supplies | D127: INK CARTRIDGE, Epson C13T112590, Light Cyan, for printer Stylus Photo R270/290/390, RX590, Std Cap | E127: cart | F127: 1230.68 | G127: 1353.75
C128: Common Computer Consumables and Supplies | D128: INK CARTRIDGE, Epson C13T112690, Light Magenta, for printer Stylus Photo R270/290/390, RX590, Std Cap | E128: cart | F128: 1230.68 | G128: 1353.75
C129: Common Computer Consumables and Supplies | D129: INK CARTRIDGE, Epson C13T141190, Black, for ME 32/320/620F - 141 | E129: cart | F129: 567.57 | G129: 624.33
C130: Common Computer Consumables and Supplies | D130: INK CARTRIDGE, Epson C13T141290, Cyan, for ME 32/320/620F - 141 | E130: cart | F130: 638.27 | G130: 702.1
C131: Common Computer Consumables and Supplies | D131: INK CARTRIDGE, Epson C13T141390, Magenta, for ME 32/320/620F - 141 | E131: cart | F131: 638.46 | G131: =ROUND((F131*1.1),2) -> 702.31
C132: Common Computer Consumables and Supplies | D132: INK CARTRIDGE, Epson C13T141490, Yellow, for ME 32/320/620F - 141 | E132: cart | F132: 638.27 | G132: 702.1
C133: Common Computer Consumables and Supplies | D133: INK CARTRIDGE, Epson C13T143190, Black, for printer ME 960FWD/900WD - 143 | E133: cart | F133: 1079.72 | G133: 1187.69
C134: Common Computer Consumables and Supplies | D134: INK CARTRIDGE, Epson C13T143290, Cyan, for printer ME Office 960FWD/ 900WD - 143 | E134: cart | F134: 850.4 | G134: 935.44
C135: Common Computer Consumables and Supplies | D135: INK CARTRIDGE, Epson C13T143390, Magenta, for printer ME Office 960FWD/ 900WD - 143 | E135: cart | F135: 850.4 | G135: 935.44
C136: Common Computer Consumables and Supplies | D136: INK CARTRIDGE, Epson C13T143490, Yellow, for printer ME Office 960FWD/ 900WD - 143 | E136: cart | F136: 850.4 | G136: 935.44
C137: Common Computer Consumables and Supplies | D137: INK CARTRIDGE, Epson C13T664200 (T6642), Cyan, original, for Epson L100, L110, L200, L210, L300, L350 and L356 | E137: cart | F137: 468.2 | G137: 515.02
C138: Common Computer Consumables and Supplies | D138: INK CARTRIDGE, Epson C13TO38191, black, for printer Stylus C41SX/UX (Double Pack) | E138: cart | F138: 1563.12 | G138: 1719.43
C139: Common Computer Consumables and Supplies | D139: INK CARTRIDGE, Epson C13TO39090, color, for printer Stylus C41SX/UX | E139: cart | F139: 1416.05 | G139: 1557.66
C140: Common Computer Consumables and Supplies | D140: INK CARTRIDGE, EPSON T6441, Black, for Epson L100, L110, L200, L210, L300, L350, L355 | E140: cart | F140: 468.2 | G140: 515.02
C141: Common Computer Consumables and Supplies | D141: INK CARTRIDGE, EPSON T664,Yellow, for Epson L100, L110, L200, L210, L300, L350, L358 | E141: cart | F141: 468.2 | G141: 515.02
C142: Common Computer Consumables and Supplies | D142: INK CARTRIDGE, EPSON T6643, Magenta for Epson L100, L110, L200, L210, L300, L350, L357 | E142: cart | F142: 468.2 | G142: 515.02
C143: Common Computer Consumables and Supplies | D143: INK CARTRIDGE, HP C4937A (HP 18) , cyan, for HP Officejet Pro K5300, K5400dn, K5400dtn, K8600, K8600dn, L7380, L7580, L7590 | E143: cart | F143: 1137.05 | G143: 1250.76
C144: Common Computer Consumables and Supplies | D144: INK CARTRIDGE, HP C8771WA(HP 02), cyan , 4 ml, for HP Photosmart D6160, D7160, D7260, D7360, D7460, 8230, HP Photosmart C5180, C6180, C6280, C7180, C7820, C8180, 3110, 3310 All-in-One | E144: cart | F144: 783.51 | G144: 861.86
C145: Common Computer Consumables and Supplies | D145: INK CARTRIDGE, HP C9364WA (HP 98), black , 11 ml, HP Deskjet D4160, HP Photosmart D5160, 8030, HP Photosmart C4180, 2575 All-in-One | E145: cart | F145: 1347.26 | G145: 1481.99
C146: Common Computer Consumables and Supplies | D146: INK CARTRIDGE, HP C9393A(HP 88XL ), yellow 17 ml, for HP Officejet Pro K550, K550dtn, K5400dn, K5400dtn, K8600, 600dn, HP Officejet Pro L7580, L7590 All-in-One | E146: cart | F146: 1823.09 | G146: 2005.4
C147: Common Computer Consumables and Supplies | D147: INK CARTRIDGE, HP C9396A(HP 88XL), black 58.5 ml, for HP Officejet Pro K550, K550dtn, K5400dn, K5400dtn, K8600, 600dn, HP Officejet Pro L7580, L7590 All-in-One | E147: cart | F147: 2694.51 | G147: 2963.96
C148: Common Computer Consumables and Supplies | D148: INK CARTRIDGE, HP 51645A (HP 45), black, for HP Deskjet, HP Officejet, HP Officejet Pro, HP Photosmart | E148: cart | F148: 2407.86 | G148: 2648.65
C149: Common Computer Consumables and Supplies | D149: INK CARTRIDGE, HP C1823DA (HP 23), tricolor, for HP Deskjet 710c, 720c, 810c, 830c, 880c, 890c, 895cxi, 1120c, 1125c, HP Officejet Pro 1170c, 1175c, r45, r65, t45, t65 All-in-One, HP PSC 500 All-in-One | E149: cart | F149: 2942.94 | G149: 3237.23
C150: Common Computer Consumables and Supplies | D150: INK CARTRIDGE, HP C4814AA (HP13), black, 28 ml, for HP Officejet Pro K850, HP Business Inkjet CP1700, 1000, 1100, 1200, 2000, 2200, 2230, 2250, 2280, 2300, 2500, 2600, 2800, 3000 printer series | E150: cart | F150: 1838.38 | G150: 2022.22
C151: Common Computer Consumables and Supplies | D151: INK CARTRIDGE, HP C4815A (HP 13), cyan, for HP Officejet Pro K850, HP Business Inkjet CP1700, 1000, 1100, 1200, 2000, 2200, 2230, 2250, 2280, 2300, 2500, 2600, 2800, 3000 printer series | E151: cart | F151: 1838.38 | G151: 2022.22
C152: Common Computer Consumables and Supplies | D152: INK CARTRIDGE, HP C4816A (HP 13), magenta, 14 ml, for HP Officejet Pro K850, HP Business Inkjet CP1700, 1000, 1100, 1200, 2000, 2200, 2230, 2250, 2280, 2300, 2500, 2600, 2800, 3000 printer series | E152: cart | F152: 1838.38 | G152: 2022.22
C153: Common Computer Consumables and Supplies | D153: INK CARTRIDGE, HP C4817A (HP 13), yellow , 14 ml, HP Officejet Pro K850, HP Business Inkjet CP1700, 1000, 1100, 1200, 2000, 2200, 2230, 2250, 2280, 2300, 2500, 2600, 2800, 3000 printer series | E153: cart | F153: 1838.38 | G153: 2022.22
C154: Common Computer Consumables and Supplies | D154: INK CARTRIDGE, HP C4836A (HP 11), cyan 28 ml, HP Officejet 9110, 9120, 9130 All-in-One, HP Business Inkjet 1100 printer series, 1200 printer series, 2230, 2280 printer series, 2300 printer series, 2600 printer series, HP Colour Printer cp1700 series | E154: cart | F154: 2627.63 | G154: 2890.39
C155: Common Computer Consumables and Supplies | D155: INK CARTRIDGE, HP C4837A (HP 11), magenta, 28 ml, for HP Officejet 9110, 9120, 9130 All-in-One, HP Business Inkjet Printer Series: 1100, 1200, 2230, 2280, 2300, 2600, HP Colour Printer cp1700 series | E155: cart | F155: 2627.63 | G155: 2890.39
C156: Common Computer Consumables and Supplies | D156: INK CARTRIDGE, HP C4838A, (HP11), yellow, for HP: Business Inkjet, Color Inkjet:, Color LaserJet, Officejet, Officejet Pro | E156: cart | F156: 2627.63 | G156: 2890.39
C157: Common Computer Consumables and Supplies | D157: INK CARTRIDGE, HP C483A (HP 11) , yellow 28 ml, for HP Officejet 9110, 9120, 9130 All-in-One, HP Business Inkjet Printer Series: 1100, 1200, 2230, 2280, 2300, 2600, HP Colour Printer cp1700 series | E157: cart | F157: 2627.63 | G157: 2890.39
C158: Common Computer Consumables and Supplies | D158: INK CARTRIDGE, HP C4844A (HP 10), black, 69mL, for HP Officejet 9110, 9120, 9130 All-in-One, HP Business Inkjet Printer Series: 1100+, 1200+, 2000, 2230+, 2280+, 2300+, 2500, 2600+, HP Colour Printer cp1700 series | E158: cart | F158: 2627.63 | G158: 2890.39
C159: Common Computer Consumables and Supplies | D159: INK CARTRIDGE, HP C4902AA (HP940), black, for HP Officejet Pro 8000, 8500 | E159: cart | F159: 2627.63 | G159: 2890.39
C160: Common Computer Consumables and Supplies | D160: INK CARTRIDGE, HP C4906AA (HP 940XL), black, HP Officejet Pro 8000, 8500 | E160: cart | F160: 2522.52 | G160: 2774.77
C161: Common Computer Consumables and Supplies | D161: INK CARTRIDGE, HP C4908AA (HP 940XL), magenta, for HP Officejet Pro 8000, 8500 | E161: cart | F161: 1823.09 | G161: 2005.4
C162: Common Computer Consumables and Supplies | D162: INK CARTRIDGE, HP C4909AA (HP 940XL ), yellow, for HP Officejet Pro 8000, 8500 | E162: cart | F162: 1823.09 | G162: 2005.4
C163: Common Computer Consumables and Supplies | D163: INK CARTRIDGE, HP C4936A (HP 18 ), black, for HP Officejet Pro K5300, K5400dn, K5400dtn, K8600, K8600dn, L7380, L7580, L7590 | E163: cart | F163: 1517.33 | G163: 1669.06
C164: Common Computer Consumables and Supplies | D164: INK CARTRIDGE, HP C4938A (HP 18) , magenta, for HP Officejet Pro K5300, K5400dn, K5400dtn, K8600, K8600dn, L7380, L7580, L7590 | E164: cart | F164: 1137.05 | G164: 1250.76
C165: Common Computer Consumables and Supplies | D165: INK CARTRIDGE, HP C4939A (HP18) , yellow, for HP Officejet Pro K5300, K5400dn, K5400dtn, K8600, K8600dn, L7380, L7580, L7590 | E165: cart | F165: 1137.05 | G165: 1250.76
C166: Common Computer Consumables and Supplies | D166: INK CARTRIDGE, HP C6578A/D (HP 78), tricolor, for HP Deskjet, HP Officejet, HP PSC, HP Photosmart | E166: cart | F166: 2675.4 | G166: 2942.94
C167: Common Computer Consumables and Supplies | D167: INK CARTRIDGE, HP C6614D (HP 20), black, 28mL, for HP Deskjet 610c, 630c, 640c, 656c | E167: cart | F167: 2522.52 | G167: 2774.77
C168: Common Computer Consumables and Supplies | D168: INK CARTRIDGE, HP C6615DA (HP 15), black, for HP Deskjet 810c, 840c, 845c, 920c, 948c, 3820, HP Officejet 5110, v40 All-in-One, HP PSC 500, 750, 950 All-in-One | E168: cart | F168: 2274.09 | G168: 2501.5
C169: Common Computer Consumables and Supplies | D169: INK CARTRIDGE, HP C6625A (HP 17), tricolor, for HP Deskjet 840c, 845c | E169: cart | F169: 2474.75 | G169: 2722.23
C170: Common Computer Consumables and Supplies | D170: INK CARTRIDGE, HP C6656AA (HP 56), black, for HP Deskjet 840c, 845c | E170: cart | F170: 1605.24 | G170: 1765.76
C171: Common Computer Consumables and Supplies | D171: INK CARTRIDGE, HP C6657AA (HP 57), tri-color, for HP Deskjet 450 printer series, HP Officejet, HP PSC, HP PSC, Photosmart All-in-One, HP Photosmart | E171: cart | F171: 2675.4 | G171: 2942.94
C172: Common Computer Consumables and Supplies | D172: INK CARTRIDGE, HP C6658A, colored for HP Photosmart | E172: cart | F172: 1966.42 | G172: 2163.06
C173: Common Computer Consumables and Supplies | D173: INK CARTRIDGE, HP C8721A (HP 02), black , 10 ml, for HP Photosmart D6160, D7160, D7260, D7360, D7460, 8230, HP Photosmart C5180, C6180, C6280, C7180, C7820, C8180, 3110, 3310 All-in-One | E173: cart | F173: 1461.92 | G173: 1608.11
C174: Common Computer Consumables and Supplies | D174: INK CARTRIDGE, HP C8727AA (HP 27), black, 10mL, for HP Deskjet 3320, 3325, 3420, 3535, 3550, 3650, 3744, 3745, 3845, HP PSC 1110, 1210, 1315 All-in-One | E174: cart | F174: 1471.47 | G174: 1618.62
C175: Common Computer Consumables and Supplies | D175: INK CARTRIDGE, HP C8765WA (HP 94), black, 11 mL, for HP Deskjet 3320, 3325, 3420, 3535, 3550, 3650, 3744, 3745, 3845, HP Officejet 4110, 4255 All-in-One, HP PSC 1110, 1210, 1315 All-in-One | E175: cart | F175: 1624.35 | G175: 1786.79
C176: Common Computer Consumables and Supplies | D176: INK CARTRIDGE, HP C8766WA (HP 95), tri-color, for HP Deskjet 460, 5740, 6540, 6840, HP Officejet 7410 All-in-One, HP PSC 2355 All-in-One, HP Photosmart 325, 375, 2610, 2710, 8150, 8450 | E176: cart | F176: 1949.22 | G176: 2144.14
C177: Common Computer Consumables and Supplies | D177: INK CARTRIDGE, HP C8767WA(HP 96), black , 21 ml, for HP Deskjet 5740, 6540, 6840, 9800, 9860, 9808, HP Photosmart 8030, 8150, 8450, 875, HP Officejet K7100, 7210, 7410 All-in-One | E177: cart | F177: 2426.97 | G177: 2669.67
C178: Common Computer Consumables and Supplies | D178: INK CARTRIDGE, HP C8772WA(HP 02), magenta, 3.5 ml, for HP Photosmart D6160, D7160, D7260, D7360, D7460, 8230, HP Photosmart C5180, C6180, C6280, C7180, C7820, C8180, 3110, 3310 All-in-One | E178: cart | F178: 783.51 | G178: 861.86
C179: Common Computer Consumables and Supplies | D179: INK CARTRIDGE, HP C8773WA(HP 02), yellow, 6 ml, for HP Photosmart D6160, D7160, D7260, D7360, D7460, 8230, HP Photosmart C5180, C6180, C6280, C7180, C7820, C8180, 3110, 3310 All-in-One | E179: cart | F179: 783.51 | G179: 861.86
C180: Common Computer Consumables and Supplies | D180: INK CARTRIDGE, HP C8774WA(HP 02), light cyan , 5.5 ml, for HP Photosmart D6160, D7160, D7260, D7360, D7460, 8230, HP Photosmart C5180, C6180, C6280, C7180, C7820, C8180, 3110, 3310 All-in-One | E180: cart | F180: 783.51 | G180: 861.86
C181: Common Computer Consumables and Supplies | D181: INK CARTRIDGE, HP C8775WA(HP 02), light magenta , 5.5 ml, for HP Photosmart D6160, D7160, D7260, D7360, D7460, 8230, HP Photosmart C5180, C6180, C6280, C7180, C7820, C8180, 3110, 3310 All-in-One | E181: cart | F181: 783.51 | G181: 861.86
C182: Common Computer Consumables and Supplies | D182: INK CARTRIDGE, HP C9351AA (HP 21), black, for HP Deskjet 3920, 3940, HP PSC 1410, 1402 | E182: cart | F182: 1152.33 | G182: 1267.56
C183: Common Computer Consumables and Supplies | D183: INK CARTRIDGE, HP C9352AA (HP 22), tri-color, for HP Deskjet 3920, 3940, HP Officejet 5610, HP PSC 1410, 1402 | E183: cart | F183: 1328.15 | G183: 1460.97
C184: Common Computer Consumables and Supplies | D184: INK CARTRIDGE, HP C9361WA (HP 93), tri-color, for HP Deskjet D4160, 5440, HP Officejet 6310 All-in-One, HP PSC 1510 All-in-One, HP Photosmart 7830, C3180, C4180 All-in-One | E184: cart | F184: 1557.47 | G184: 1713.22
C185: Common Computer Consumables and Supplies | D185: INK CARTRIDGE, HP C9362WA (HP 92), black, for HP Deskjet 5440, HP Officejet 6310 All-in-One, HP PSC 1510 All-in-One, HP Photosmart 7830, C3180 All-in-One | E185: cart | F185: 1102.65 | G185: 1212.92
C186: Common Computer Consumables and Supplies | D186: INK CARTRIDGE, HP C9363WA (HP 97), tricolor , 14 ml, for HP Deskjet 5740, 6540, 6840, 9800, 9860, 9808, HP Photosmart 2575, 2610, 2710 All-in-On, HP PSC 1610, 2355 All-in-One | E186: cart | F186: 2694.51 | G186: 2963.96
C187: Common Computer Consumables and Supplies | D187: INK CARTRIDGE, HP C9391A(HP 88XL), cyan , 17 ml, for HP Officejet Pro K550, K550dtn, K5400dn, K5400dtn, K8600, 600dn, HP Officejet Pro L7580, L7590 All-in-One | E187: cart | F187: 1823.09 | G187: 2005.4
C188: Common Computer Consumables and Supplies | D188: INK CARTRIDGE, HP C9392A( HP 88XL), magenta 17 ml, for HP Officejet Pro K550, K550dtn, K5400dn, K5400dtn, K8600, 600dn, HP Officejet Pro L7580, L7590 All-in-One | E188: cart | F188: 1823.09 | G188: 2005.4
C189: Common Computer Consumables and Supplies | D189: INK CARTRIDGE, HP CB314A (HP 900), black, for HP Deskjet 900, 910, 915 | E189: cart | F189: 479.66 | G189: 527.63
C190: Common Computer Consumables and Supplies | D190: INK CARTRIDGE, HP CB315A (HP 900), tri-color, for HP Deskjet 900, 910, 915 | E190: cart | F190: 649.74 | G190: 714.71
C191: Common Computer Consumables and Supplies | D191: INK CARTRIDGE, HP CB316WA( HP 564), black, for HP Photosmart D5400, C5380, C6380, Photosmart Pro B8550 | E191: cart | F191: 875.24 | G191: 962.76
C192: Common Computer Consumables and Supplies | D192: INK CARTRIDGE, HP CB317WA(HP 564), photo, for HP Photosmart D5400, C5380, C6380, Photosmart Pro B8550 | E192: cart | F192: 731.91 | G192: 805.1
C193: Common Computer Consumables and Supplies | D193: INK CARTRIDGE, HP CB318WA(HP 564), cyan, for HP Photosmart D5400, C5380, C6380, Photosmart Pro B8550 | E193: cart | F193: 731.91 | G193: 805.1
C194: Common Computer Consumables and Supplies | D194: INK CARTRIDGE, HP CB319WA(HP 564), magenta, for HP Photosmart D5400, C5380, C6380, Photosmart Pro B8550 | E194: cart | F194: 731.91 | G194: 805.1
C195: Common Computer Consumables and Supplies | D195: INK CARTRIDGE, HP CB320WA ( HP 564), yellow, for HP Photosmart D5400, C5380, C6380, Photosmart Pro B8550 | E195: cart | F195: 731.91 | G195: =ROUND((F195*1.1),2) -> 805.1
C196: Common Computer Consumables and Supplies | D196: INK CARTRIDGE, HP CB323WA(HP 564XL), cyan, for HP Photosmart D5400, C5380, C6380, Photosmart Pro B8550 | E196: cart | F196: 1454.27 | G196: 1599.7
C197: Common Computer Consumables and Supplies | D197: INK CARTRIDGE, HP CB324WA(564XL), magenta, for HP Photosmart D5400, C5380, C6380, Photosmart Pro B8550 | E197: cart | F197: 1454.27 | G197: 1599.7
C198: Common Computer Consumables and Supplies | D198: INK CARTRIDGE, HP CB325WA(564XL), yellow, for HP Photosmart D5400, C5380, C6380, Photosmart Pro B8550 | E198: cart | F198: 1454.27 | G198: 1599.7
C199: Common Computer Consumables and Supplies | D199: INK CARTRIDGE, HP CB335WA(HP74 ), black , 4.5 ml, for HP Deskjet D4260, D4360, HP Photosmart C4280, C4380, C4480, C5280 All-in-One, HP Officejet J5780, J6480 All-in-One | E199: cart | F199: 1176.44 | G199: 1294.08
C200: Common Computer Consumables and Supplies | D200: INK CARTRIDGE, HP CB336WA (HP74XL), black , 18 ml, for HP Deskjet D4260, D4360, HP Photosmart C4280, C4380, C4480, C5280 All-in-One, HP Officejet J5780, J6480 All-in-One | E200: cart | F200: 2436.53 | G200: 2680.18
... 701 more rows

Sheet PPMP
A1: DEPARTMENT OF EDUCATION
A2: REGION X - NORTHERN MINDANAO
A3: DIVISION OF MALAYBALAY CITY
A4: P-6, Casisang, Malaybalay City
A6: =UPPER(Input!R1) -> 
A7: for CY | B7: ="PROJECT PROCUREMENT MANAGEMENT PLAN FOR CY " & CONCATENATE(Input!B3) -> PROJECT PROCUREMENT MANAGEMENT PLAN FOR CY
B9: PROGRAM / ACTIVITY / PROJECT: | C9: =UPPER(Input!R2) -> 
A11: Category | B11: ITEM AND SPECIFICATIONS | C11: Unit | D11: QUANTITY REQUIREMENT | T11: TOTAL QUANTITY | U11: UNIT PRICE | V11: MARKED UP PRICE | W11: TOTAL AMOUNT
D12: Jan | E12: Feb | F12: Mar | G12: Q1 | H12: Apr | I12: May | J12: June | K12: Q2 | L12: Jul | M12: Aug | N12: Sept | O12: Q3 | P12: Oct | Q12: Nov | R12: Dec | S12: Q4
B15: TOTAL | W15: =ROUND(SUM(W13:W14),2) -> 0
B18: Prepared by: | E18: Reviewed by: | M18: Approved by:
B21: =UPPER(Input!B1) ->  | E21: =UPPER(Input!G3) ->  | M21: =UPPER(Input!G1) -> 
B22: =UPPER(Input!B2) ->  | E22: SCHOOL BAC SECRETARIAT | M22: =UPPER(Input!G2) -> 
